lending/lending_fUSD_20251020
["ID","MTS","AMOUNT","RATE_DAILY","PERIOD"]
[391887782,1760955032332,-500.0,0.00021003,2]
[391887784,1760955032340,-500.0,0.00021003,2]
[391887786,1760955032350,-500.0,0.00021003,2]
[391887788,1760955032359,-500.0,0.00021003,2]
[391887790,1760955032368,-500.0,0.00021003,2]
[391887792,1760955032377,-500.0,0.00021003,2]
[391887794,1760955032386,-500.0,0.00021003,2]
[391887796,1760955032396,-500.0,0.00021003,2]
[391887798,1760955032405,-500.0,0.00021003,2]
[391887800,1760955032414,-500.0,0.00021003,2]
[391887802,1760955032423,-500.0,0.00021003,2]
[391887804,1760955032432,-500.0,0.00021003,2]
[391887806,1760955032441,-500.0,0.00021003,2]
[391887808,1760955032450,-458.84,0.00021786,2]
[391887810,1760955032459,-458.84,0.00022593,2]
[391887812,1760955032469,-162.34,0.00023,2]
[391887814,1760955032478,-458.84,0.000234,2]
[391887816,1760955032487,-1184.0,0.00023548,2]
[391887818,1760955032497,-2732.05,0.00024174,2]
[391887820,1760955032506,-1081.2,0.00024174,2]
[391887822,1760955032514,-458.84,0.00024207,2]
[391887824,1760955032523,-388.27,0.00024887,2]
[391887826,1760955032532,-3569.14397492,0.0002489,2]
[391887828,1760955032541,-458.84,0.00025014,2]
[391887830,1760955032551,-388.27,0.00025161,2]
[391887832,1760955032560,-388.27,0.00025435,2]
[391887833,1760955032568,-157.37728661,0.000257,2]
[391888275,1760955037717,-605.04108339,0.000257,2]
[391888276,1760955037727,-388.27,0.00025709,2]
[391888277,1760955037736,-458.84,0.00025821,2]
[391888278,1760955037745,-388.30992905,0.00025983,2]
[391888279,1760955037754,-1184.0,0.00026548,2]
[391888280,1760955037763,-458.84,0.00026628,2]
[391888281,1760955037773,-169.06,0.00027302,2]
[391888282,1760955037782,-600.0,0.00027397,2]
[391888283,1760955037791,-458.84,0.00027435,2]
[391888284,1760955037801,-150.0,0.00027692,7]
[391888285,1760955037811,-150.0,0.00027692,7]
[391888286,1760955037824,-1000.0,0.00027812,2]
[391888287,1760955037833,-600.0,0.00027945,2]
[391888288,1760955037843,-605.42,0.00027967,2]
[391888289,1760955037857,-175.49535353,0.00028151,18]
[391888290,1760955037867,-168.0,0.0002819,2]
[391888291,1760955037876,-458.84,0.00028241,2]
[391888292,1760955037885,-600.0,0.00028493,2]
[391888293,1760955037895,-226.67214804,0.00028599,3]
[391888294,1760955037907,-439.32785196,0.00028599,3]
[391888295,1760955037917,-154.39,0.00028648,2]
[391888296,1760955037926,-128.46267683,0.00028855,2]
[391888297,1760955037941,-871.53732317,0.00028855,2]
[391888298,1760955037951,-337.22230929,0.00029041,2]
[391888299,1760955037962,-262.77769071,0.00029041,2]
[391888300,1760955037971,-458.84,0.00029048,2]
[391888301,1760955037980,-477.686,0.00029548,2]
[391888302,1760955037989,-237.69192986,0.00029589,2]
[391888303,1760955038000,-362.30807014,0.00029589,2]
[391888304,1760955038009,-458.84,0.00029855,2]
[391888305,1760955038018,-1000.0,0.00029898,2]
[391888306,1760955038027,-600.0,0.00030137,2]
[391888307,1760955038037,-153.33,0.00030399,2]
[391888308,1760955038050,-1476.06270116,0.00030441,2]
[391888309,1760955038059,-1000.0,0.00030593,2]
[391888310,1760955038068,-458.84,0.00030662,2]
[391888311,1760955038078,-600.0,0.00030685,2]
[391888312,1760955038087,-322.6107,0.00030869,2]
[391888313,1760955038098,-500.0,0.00030869,2]
[391888314,1760955038107,-500.0,0.00030869,2]
[391888315,1760955038117,-500.0,0.00030869,2]
[391888316,1760955038127,-500.0,0.00030869,2]
[391888317,1760955038136,-277.35679052,0.00030869,2]
[391888318,1760955038146,-500.0,0.00030869,2]
[391888319,1760955038163,-500.0,0.00030869,2]
[391888320,1760955038172,-500.0,0.00030869,2]
[391888321,1760955038181,-215.06307464,0.00030869,2]
[391888322,1760955038193,-284.93692536,0.00030869,2]
[391888323,1760955038203,-500.0,0.00030869,2]
[391888324,1760955038212,-500.0,0.00030869,2]
[391888325,1760955038222,-500.0,0.00030869,2]
[391888326,1760955038232,-218.25866315,0.00030869,2]
[391888327,1760955038243,-281.74133685,0.00030869,2]
[391888328,1760955038257,-441.06600526,0.00030869,2]
[391888329,1760955038268,-58.93399474,0.00030869,2]
[391888330,1760955038278,-500.0,0.00030869,2]
[391888331,1760955038287,-500.0,0.00030869,2]
[391888332,1760955038296,-500.0,0.00030869,2]
[391888333,1760955038306,-500.0,0.00030869,2]
[391888334,1760955038316,-500.0,0.00030869,2]
[391888353,1760955038326,-500.0,0.00030869,2]
[391888355,1760955038546,-500.0,0.00030869,2]
[391888357,1760955038556,-500.0,0.00030869,2]
[391888360,1760955038566,-500.0,0.00030869,2]
[391888362,1760955038577,-250.0,0.00030869,2]
[391888364,1760955038590,-250.0,0.00030869,2]
[391888366,1760955038599,-250.0,0.00030869,2]
[391888368,1760955038608,-250.0,0.00030869,2]
[391888370,1760955038617,-250.0,0.00030869,2]
[391888372,1760955038626,-250.0,0.00030869,2]
[391888374,1760955038635,-250.0,0.00030869,2]
[391888376,1760955038645,-250.0,0.00030869,2]
[391888378,1760955038653,-250.0,0.00030869,2]
[391888380,1760955038662,-250.0,0.00030869,2]
[391888382,1760955038671,-250.0,0.00030869,2]
[391888384,1760955038681,-1000.0,0.00030941,2]
[391888386,1760955038690,-600.0,0.00031233,2]
[391888388,1760955038700,-200.0,0.00031694,2]
[391888390,1760955038709,-600.0,0.00031781,2]
[391888392,1760955038719,-1000.0,0.00031983,2]
[391888394,1760955038728,-241.67246117,0.00032238,2]
[391888396,1760955038737,-226.83820996,0.00032238,2]
[391888398,1760955038747,-4000.0,0.0003224,2]
[391888399,1760955038756,-600.0,0.00032329,2]
[391888401,1760955038766,-850.90747053,0.00033081,2]
[391888404,1760955038779,-250.0,0.00033231,7]
[391888406,1760955038789,-2000.0,0.000334,2]
[391888408,1760955038800,-188.04956782,0.000337,120]
[391888410,1760955038810,-297.18635274,0.000337,120]
[391888412,1760955038820,-1007.5351602,0.000337,120]
[391888413,1760955038832,-164.35759784,0.000337,120]
[391888416,1760955038842,-766.46065558,0.000337,120]
[391888417,1760955038851,-10264.01087903,0.000337,120]
[391888420,1760955038863,-475.93135235,0.000337,120]
[391888422,1760955038872,-150.0,0.000337,60]
[391888424,1760955038882,-150.0,0.000337,60]
[391888426,1760955038891,-150.0,0.000337,60]
[391888428,1760955038903,-150.0,0.000337,60]
[391888430,1760955038912,-150.0,0.000337,60]
[391888432,1760955038922,-150.0,0.000337,60]
[391888434,1760955038931,-150.0,0.000337,60]
[391888436,1760955038941,-151.15507393,0.000337,60]
[391888438,1760955038950,-150.0,0.000337,60]
[391888440,1760955038959,-150.0,0.000337,60]
[391888442,1760955038969,-150.0,0.000337,60]
[391888444,1760955038978,-150.0,0.000337,2]
[391888446,1760955038987,-150.0,0.000337,60]
[391888448,1760955038997,-150.0,0.000337,2]
[391888450,1760955039008,-150.0,0.000337,60]
[391888452,1760955039017,-250.0,0.000337,60]
[391888454,1760955039027,-874.7893881,0.00033708,2]
[391888456,1760955039037,-150.0,0.00033755,60]
[391888458,1760955039047,-150.0,0.00033755,60]
[391888460,1760955039056,-150.0,0.00033755,60]
[391888462,1760955039066,-150.0,0.00033755,60]
[391888464,1760955039075,-150.0,0.00033755,60]
[391888467,1760955039085,-150.0,0.00033755,60]
[391888469,1760955039095,-150.0,0.00033755,60]
[391888471,1760955039104,-150.0,0.00033755,60]
[391888472,1760955039113,-200.0,0.0003381,60]
[391888474,1760955039123,-200.0,0.0003381,60]
[391888476,1760955039132,-200.0,0.0003381,60]
[391888478,1760955039141,-200.0,0.0003381,60]
[391888480,1760955039150,-200.0,0.0003381,60]
[391888482,1760955039160,-200.0,0.0003381,60]
[391888486,1760955039178,-150.0,0.0003381,60]
[391888488,1760955039190,-200.0,0.0003381,60]
[391888490,1760955039199,-4774.93511603,0.00033839,2]
[391888492,1760955039208,-151.97504289,0.00033839,2]
[391888494,1760955039218,-150.0,0.00033839,2]
[391888496,1760955039227,-150.0,0.00033839,2]
[391888498,1760955039237,-1980.08805,0.0003386,2]
[391888500,1760955039247,-200.0,0.00033864,60]
[391888502,1760955039256,-1200.2,0.00033989,30]
[391888504,1760955039266,-1200.2,0.00033989,30]
[391888506,1760955039275,-1220.45,0.00033989,30]
[391888508,1760955039285,-1200.2,0.00033989,30]
[391888510,1760955039294,-1200.2,0.00033989,30]
[391888512,1760955039304,-1200.2,0.00033989,30]
[391888514,1760955039314,-1200.2,0.00033989,30]
[391888516,1760955039323,-500.0,0.00033989,2]
[391888518,1760955039333,-300.0,0.00033989,8]
[391888520,1760955039343,-2146.69,0.00033989,8]
[391888522,1760955039353,-500.0,0.00033989,2]
[391888524,1760955039363,-500.0,0.00033989,8]
[391888526,1760955039372,-500.0,0.00033989,8]
[391888528,1760955039381,-500.0,0.00033989,8]
[391888530,1760955039392,-500.0,0.00033989,8]
[391888532,1760955039401,-500.0,0.00033989,8]
[391888534,1760955039411,-500.0,0.00033989,8]
[391888536,1760955039420,-500.0,0.00033989,8]
[391888538,1760955039429,-579.73,0.00033989,8]
[391888540,1760955039439,-500.0,0.00033989,8]
[391888542,1760955039448,-536.02230934,0.00034062,2]
[391888544,1760955039458,-3196.08059419,0.00034062,2]
[391888546,1760955039468,-169.35128844,0.00034097,15]
[391888548,1760955039478,-799.12015218,0.000341,6]
[391888550,1760955039487,-3400.94156547,0.00034106,2]
[391888552,1760955039499,-306.09114075,0.00034106,7]
[391888554,1760955039509,-165581.09135068,0.00034107,2]
[391888557,1760955039519,-19964.0435222,0.00034163,2]
[391888558,1760955039528,-806.5443889,0.0003417,2]
[391888559,1760955039537,-500.0,0.00034173,5]
[391888560,1760955039550,-500.0,0.00034173,5]
[391888561,1760955039560,-160.05545039,0.00034173,2]
[391888562,1760955039570,-500.0,0.00034173,5]
[391888563,1760955039579,-500.0,0.00034173,5]
[391888564,1760955039589,-500.0,0.00034173,5]
[391888565,1760955039599,-2720.5976055,0.00034196,2]
[391888566,1760955039608,-200.0,0.00034197,2]
[391888567,1760955039618,-12894.61680158,0.00034197,2]
[391888569,1760955039632,-106889.64433142,0.00034197,2]
[391888571,1760955039643,-254.370207,0.000342,21]
[391888573,1760955039652,-150.0,0.000342,60]
[391888575,1760955039662,-3925.98546159,0.000342,2]
[391888822,1760955044911,-1.6e-07,0.000342,2]
[391888823,1760955045329,-361.85129692,0.00020548,2]
[391888824,1760955045947,-540.14870308,0.00020548,2]
[391888825,1760955045958,-1064.01453825,0.000342,2]
[391888826,1760955045969,-1006.0,0.000342,7]
[391888827,1760955045982,-1078.2192,0.00034204,3]
[391888828,1760955045992,-1265.81755867,0.00034204,3]
[391888829,1760955046011,-651.98542784,0.00034204,3]
[391888830,1760955118362,323.64,0.00013699,2]
[391888836,1760955366886,4000.0,0.00022206,120]
[391888837,1760955366989,4000.0,0.00023432,120]
[391888840,1760955425738,2500.0,0.00022206,120]
[391888841,1760955428390,4000.0,0.00022206,120]
[391888842,1760955428488,4000.0,0.00023432,120]
[391888843,1760955428587,4000.0,0.00028463,120]
[391888844,1760955428689,3000.0,0.00028463,120]
[391888845,1760955463962,-194.51678034,0.00020187,2]
[391888846,1760955484383,4000.0,0.00022206,120]
[391888847,1760955484495,4000.0,0.00020187,120]
[391888848,1760955484601,4000.0,0.00026063,120]
[391888849,1760955484707,194.49231369,0.00026063,120]
[391888850,1760955499761,434.853855,0.00034316,60]
[391888853,1760955788860,-166.66,0.00031301,30]
[391888854,1760955788892,-83.34,0.0003196,30]
[391888856,1760955841433,1129.0,0.00015,6]
[391888857,1760955893053,-150.0,0.000337,120]
[391888858,1760955908482,1209935.17509867,0.00015,2]
[391888875,1760956089434,217944.59,0.000287,120]
[391888891,1760956126356,953.34072653,0.00013699,2]
[391888903,1760956231986,-150.0,0.00020187,2]
[391888904,1760956231996,-169.38421564,0.00020187,2]
[391888905,1760956232005,-129.12321966,0.00020187,2]
[391888906,1760956232014,-195.0,0.00022206,2]
[391888907,1760956232024,-323.64,0.00026676,2]
[391888908,1760956232033,-475.93135235,0.0003046,2]
[391888909,1760956232044,-83.32,0.0003196,30]
[391888910,1760956232054,-250.0,0.00032435,2]
[391888911,1760956232063,-533.0,0.00032439,2]
[391888912,1760956232073,-173.67649487,0.0003244,2]
[391888913,1760956232087,-426.32350513,0.0003244,2]
[391888914,1760956232097,-500.0,0.0003244,2]
[391888915,1760956232107,-500.0,0.0003244,2]
[391888916,1760956232116,-500.0,0.0003244,2]
[391888917,1760956232126,-500.0,0.0003244,2]
[391888918,1760956232136,-391.5873883,0.0003244,2]
[391888919,1760956232151,-108.4126117,0.0003244,2]
[391888920,1760956232160,-392.4073106,0.0003244,2]
[391888921,1760956232254,-107.5926894,0.0003244,2]
[391888922,1760956232263,-401.9073106,0.0003244,2]
[391888981,1760956237931,-98.0926894,0.0003244,2]
[391888982,1760956237940,-461.3662106,0.0003244,2]
[391888983,1760956237952,-38.6337894,0.0003244,2]
[391888984,1760956237962,-500.0,0.0003244,2]
[391888985,1760956237972,-500.0,0.0003244,2]
[391888986,1760956237981,-500.0,0.0003244,2]
[391888987,1760956237990,-500.0,0.0003244,2]
[391888988,1760956237999,-500.0,0.0003244,2]
[391888989,1760956238008,-461.79110585,0.0003244,2]
[391888990,1760956238020,-38.20889415,0.0003244,2]
[391888991,1760956238030,-500.0,0.0003244,2]
[391888992,1760956238039,-500.0,0.0003244,2]
[391888993,1760956238049,-80.78919005,0.0003244,2]
[391888994,1760956238061,-419.21080995,0.0003244,2]
[391888995,1760956238071,-500.0,0.0003244,2]
[391888996,1760956238080,-500.0,0.0003244,2]
[391888997,1760956238090,-500.0,0.0003244,2]
[391888998,1760956238099,-53.08919002,0.0003244,2]
[391888999,1760956238140,-418.42887586,0.0003244,2]
[391889002,1760956238155,-28.48193412,0.0003244,2]
[391889004,1760956238164,-500.0,0.0003244,2]
[391889005,1760956238174,-500.0,0.00032459,2]
[391889008,1760956238183,-500.0,0.00032459,2]
[391889009,1760956238193,-250.0,0.00032459,2]
[391889012,1760956238203,-3750.09929846,0.0003246,2]
[391889014,1760956238215,-17494.69070154,0.0003246,2]
[391889016,1760956238224,-6578.64929846,0.0003246,2]
[391889204,1760956240084,-3562.5345308,0.0003246,2]
[391889205,1760956240095,-11163.924,0.0003246,2]
[391889208,1760956240108,-504.84217074,0.0003246,2]
[391889211,1760956240118,-967.0,0.0003248,2]
[391889214,1760956240127,-700.89,0.00032502,30]
[391889216,1760956240137,-383.6,0.00032503,2]
[391889220,1760956240146,-1000.0,0.00032525,2]
[391889222,1760956240156,-150.0,0.00032537,2]
[391889223,1760956240165,-166.66,0.00032619,30]
[391889225,1760956240175,-5000.0,0.00032678,2]
[391889226,1760956240184,-192.0,0.00032678,7]
[391889228,1760956240193,-357.07492969,0.0003275,2]
[391889230,1760956240202,-30.82804417,0.00032787,2]
[391889231,1760956240214,-936.17195583,0.00032787,2]
[391889233,1760956240223,-970.0,0.00032825,2]
[391889235,1760956240232,-967.0,0.00032947,2]
[391889236,1760956240245,-147.06715961,0.00032988,2]
[391889238,1760956240260,-466.24789043,0.00032988,2]
[391889240,1760956240269,-162.21123889,0.00033,5]
[391889242,1760956240278,-967.0,0.00033013,2]
[391889243,1760956240289,-239.99737058,0.00033042,2]
[391889246,1760956240309,-727.00262942,0.00033042,2]
[391889247,1760956240320,-338.07158738,0.0003313,2]
[391889330,1760956243169,-628.92841262,0.0003313,2]
[391889331,1760956243179,-323.64,0.00033165,2]
[391889332,1760956243188,-262.76158738,0.00033166,2]
[391889333,1760956243199,-704.23841262,0.00033166,2]
[391889334,1760956243208,-970.0,0.00033174,7]
[391889335,1760956243218,-660.69965674,0.00033174,2]
[391889336,1760956243228,-967.0,0.00033254,7]
[391889337,1760956243237,-227.96,0.00033277,2]
[391889338,1760956243252,-166.66,0.00033278,30]
[391889339,1760956243262,-967.0,0.00033415,2]
[391889340,1760956243274,-975.0,0.00033504,2]
[391889341,1760956243284,-967.0,0.00033555,2]
[391889342,1760956243293,-970.0,0.00033619,2]
[391889343,1760956243303,-87.74908219,0.000337,120]
[391889344,1760956243313,-164.35759783,0.000337,120]
[391889345,1760956243323,-806.02812816,0.000337,120]
[391889346,1760956243333,-613.16852446,0.000337,120]
[391889347,1760956243342,-9871.45104247,0.000337,120]
[391889348,1760956243353,-392.55983656,0.000337,120]
[391889349,1760956243363,-188.04956781,0.000337,120]
[391889350,1760956243372,-812.99059563,0.00033738,2]
[391889351,1760956243383,-61.79879257,0.00033738,2]
[391889352,1760956243392,-190.18479736,0.00033748,2]
[391889353,1760956243403,-776.81520264,0.00033748,2]
[391889354,1760956243412,-315.43,0.00033844,2]
[391889355,1760956243422,-1650.07338,0.0003386,2]
[391889356,1760956243431,-300.0,0.00033892,2]
[391889357,1760956243441,-200.0,0.00033925,10]
[391889358,1760956243451,-166.66,0.00033937,30]
[391889360,1760956243459,-150.0,0.00033987,2]
[391889362,1760956243468,-150.0,0.00033987,2]
[391889364,1760956243478,-150.0,0.00033987,2]
[391889365,1760956243487,-150.0,0.00033987,2]
[391889366,1760956243496,-150.0,0.00033987,2]
[391889367,1760956243506,-150.0,0.00033987,2]
[391889369,1760956243515,-150.0,0.00033987,2]
[391889370,1760956243523,-150.0,0.00033987,2]
[391889371,1760956243533,-963.4388,0.00034,2]
[391889372,1760956243543,-150.0,0.00034007,2]
[391889373,1760956243552,-150.0,0.00034007,2]
[391889374,1760956243563,-305.8623,0.00034007,2]
[391889375,1760956243573,-1000.0,0.00034007,2]
[391889376,1760956243582,-150.0,0.00034042,2]
[391889377,1760956243591,-150.0,0.00034042,2]
[391889378,1760956243600,-150.0,0.00034042,2]
[391889379,1760956243610,-150.0,0.00034062,2]
[391889381,1760956243619,-320.09916495,0.00034062,2]
[391889382,1760956243629,-150.0,0.00034097,2]
[391889383,1760956243638,-200.0,0.00034097,2]
[391889384,1760956243647,-200.0,0.00034097,2]
[391889385,1760956243657,-1650.07338,0.000341,2]
[391889386,1760956243666,-2500.0,0.00034106,2]
[391889387,1760956243675,-4119.88220699,0.00034107,2]
[391889388,1760956243685,-3780.08535687,0.00034107,2]
[391889389,1760956243694,-962.28809988,0.00034107,2]
[391889391,1760956246163,-140.4240911,0.00032341,66]
[391889392,1760956246189,-18.37059528,0.00032341,66]
[391889393,1760956246199,-37.71190012,0.00034107,2]
[391889394,1760956246209,-169.35128844,0.00034116,15]
[391889395,1760956246219,-200.0,0.00034117,2]
[391889396,1760956246228,-970.0,0.00034143,2]
[391889397,1760956246239,-181.75197015,0.00034143,2]
[391889398,1760956246254,-151.89863775,0.00034143,2]
[391889399,1760956246265,-150.0,0.00034143,2]
[391889400,1760956246277,-150.0,0.00034143,2]
[391889401,1760956246287,-244.42365491,0.00034143,2]
[391889402,1760956246298,-150.0,0.00034143,2]
[391889403,1760956246309,-20.64195335,0.00034143,2]
[391889404,1760956246321,-130.50003376,0.00034143,2]
[391889405,1760956246331,-150.0,0.00034151,2]
[391889406,1760956246341,-823.29996624,0.00034197,2]
[391889407,1760956246354,-1653.64125289,0.00034197,2]
[391889408,1760956246381,-439.9869183,0.00034197,2]
[391889409,1760956246392,-3586.76007911,0.00034197,2]
[391889422,1760956325132,500.0,0.00034318,30]
[391889423,1760956325164,152.90140094,0.00034318,30]
[391889424,1760956325252,500.0,0.00034318,30]
[391889425,1760956325289,500.0,0.00034318,30]
[391889426,1760956325321,250.0,0.00034318,30]
[391889427,1760956325355,250.0,0.00034318,30]
[391889428,1760956325394,500.0,0.00034318,30]
[391889429,1760956325485,6888.0,0.00034318,30]
[391889430,1760956325734,500.0,0.00034318,30]
[391889431,1760956325768,600.0,0.00034318,30]
[391889432,1760956325883,500.0,0.00034318,30]
[391889433,1760956325914,500.0,0.00034318,30]
[391889434,1760956325946,250.0,0.00034318,30]
[391889435,1760956325991,250.0,0.00034318,30]
[391889436,1760956326025,500.0,0.00034318,30]
[391889437,1760956326255,7142.856,0.00034318,30]
[391889438,1760956326402,500.0,0.00034318,30]
[391889439,1760956326434,600.0,0.00034318,30]
[391889440,1760956326549,500.0,0.00034318,30]
[391889441,1760956326586,500.0,0.00034318,30]
[391889442,1760956326621,250.0,0.00034318,30]
[391889443,1760956326670,250.0,0.00034318,30]
[391889444,1760956326700,500.0,0.00034318,30]
[391889445,1760956326863,7407.141672,0.00034318,30]
[391889446,1760956327013,500.0,0.00034318,30]
[391889447,1760956327083,600.0,0.00034318,30]
[391889448,1760956327182,500.0,0.00034318,30]
[391889449,1760956327402,250.0,0.00034318,30]
[391889450,1760956327437,500.0,0.00034318,30]
[391889451,1760956327468,250.0,0.00034318,30]
[391889452,1760956327500,500.0,0.00034318,30]
[391889453,1760956327571,7681.20591386,0.00034318,30]
[391889454,1760956327632,500.0,0.00034318,30]
[391889455,1760956327690,600.0,0.00034318,30]
[391889456,1760956327820,250.0,0.00034318,30]
[391889457,1760956327851,500.0,0.00034318,30]
[391889458,1760956327897,500.0,0.00034318,30]
[391889459,1760956327937,500.0,0.00034318,30]
[391889460,1760956327968,250.0,0.00034318,30]
[391889461,1760956328086,7965.41053268,0.00034318,30]
[391889462,1760956328284,500.0,0.00034318,30]
[391889463,1760956328318,600.0,0.00034318,30]
[391889464,1760956328492,500.0,0.00034318,30]
[391889465,1760956328525,250.0,0.00034318,30]
[391889466,1760956328558,250.0,0.00034318,30]
[391889467,1760956328589,500.0,0.00034318,30]
[391889468,1760956328624,500.0,0.00034318,30]
[391889469,1760956328716,500.0,0.00034318,30]
[391889470,1760956328753,8260.13072239,0.00034318,30]
[391889471,1760956328898,500.0,0.00034318,30]
[391889472,1760956328932,600.0,0.00034318,30]
[391889473,1760956329158,500.0,0.00034318,30]
[391889474,1760956329190,500.0,0.00034318,30]
[391889475,1760956329224,250.0,0.00034298,30]
[391889476,1760956329256,500.0,0.00034298,30]
[391889477,1760956329327,250.0,0.00034298,30]
[391889478,1760956329367,500.0,0.00034298,30]
[391889479,1760956329564,500.0,0.00034298,30]
[391889480,1760956329597,600.0,0.00034298,30]
[391889481,1760956329801,500.0,0.00034298,30]
[391889482,1760956329832,500.0,0.00034298,30]
[391889483,1760956329864,500.0,0.00034298,30]
[391889484,1760956329896,250.0,0.00034298,30]
[391889485,1760956329958,250.0,0.00034298,30]
[391889486,1760956330038,500.0,0.00034298,30]
[391889487,1760956330161,500.0,0.00034298,30]
[391889488,1760956330227,600.0,0.00034298,30]
[391889489,1760956330387,151.0,0.00034298,30]
[391889490,1760956330447,500.0,0.00034298,30]
[391889491,1760956330476,500.0,0.00034298,30]
[391889492,1760956330507,500.0,0.00034298,30]
[391889493,1760956330540,8565.75555911,0.00034298,30]
[391889494,1760956330572,250.0,0.00034298,30]
[391889495,1760956330613,250.0,0.00034298,30]
[391889496,1760956330694,500.0,0.00034298,30]
[391889497,1760956330828,600.0,0.00034298,30]
[391889498,1760956331026,151.0,0.00034298,30]
[391889499,1760956331077,500.0,0.00034298,30]
[391889500,1760956331360,500.0,0.00034298,30]
[391889501,1760956331446,600.0,0.00034298,30]
[391889502,1760956331645,151.0,0.00034298,30]
[391889503,1760956331753,500.0,0.00034298,30]
[391889504,1760956331974,500.0,0.00034298,30]
[391889505,1760956332309,151.0,0.00034298,30]
[391889506,1760956332370,500.0,0.00034298,30]
[391889507,1760956332667,500.0,0.00034298,30]
[391889508,1760956332923,151.0,0.00034298,30]
[391889509,1760956333016,500.0,0.00034298,30]
[391889510,1760956333304,500.0,0.00034298,30]
[391889511,1760956333573,151.0,0.00034298,30]
[391889512,1760956333615,500.0,0.00034298,30]
[391889513,1760956334109,500.0,0.00034298,30]
[391889514,1760956334365,151.0,0.00034298,30]
[391889515,1760956334808,151.0,0.00034298,30]
[391889516,1760956334955,500.0,0.00034298,30]
[391889517,1760956335277,250.0,0.00034298,30]
[391889518,1760956335584,500.0,0.00034298,30]
[391889519,1760956335785,250.0,0.00034298,30]
[391889520,1760956336292,500.0,0.00034298,30]
[391889521,1760956336365,500.0,0.00034298,30]
[391889522,1760956336397,250.0,0.00034298,30]
[391889523,1760956336427,151.0,0.00034298,30]
[391889524,1760956336608,250.0,0.00034298,30]
[391889525,1760956336927,500.0,0.00034298,30]
[391889526,1760956337019,151.0,0.00034298,30]
[391889527,1760956337050,250.0,0.00034298,30]
[391889528,1760956337318,250.0,0.00034298,30]
[391889529,1760956337577,500.0,0.00034298,30]
[391889530,1760956337682,250.0,0.00034298,30]
[391889531,1760956337836,500.0,0.00034298,30]
[391889532,1760956337961,250.0,0.00034298,30]
[391889533,1760956338293,500.0,0.00034298,30]
[391889534,1760956338370,151.0,0.00034298,30]
[391889535,1760956338403,250.0,0.00034298,30]
[391889536,1760956338486,500.0,0.00034298,30]
[391889537,1760956338610,250.0,0.00034298,30]
[391889538,1760956338968,151.0,0.00034298,30]
[391889539,1760956339020,250.0,0.00034298,30]
[391889540,1760956339300,500.0,0.00034298,30]
[391889541,1760956339695,250.0,0.00034298,30]
[391889542,1760956339735,250.0,0.00034298,30]
[391889543,1760956339945,500.0,0.00034298,30]
[391889544,1760956340082,500.0,0.00034298,30]
[391889545,1760956340155,151.0,0.00034298,30]
[391889546,1760956340346,250.0,0.00034298,30]